[Event "SixDays Budapest IM-B January 2024"]
[Site "Budapest"]
[Date "2024.01.27"]
[Round "1.1"]
[White "Mouhamad, Joachim"]
[Black "Sgircea, Silvia-Raluca"]
[Result "1-0"]
[ECO "B36"]
[WhiteElo "2316"]
[BlackElo "2242"]
[Annotator "ChessBase"]
[PlyCount "77"]
[EventDate "2024.01.26"]
[EventType "tourn"]
[EventCountry "HUN"]
[SourceTitle "playchess.com"]
[Source "ChessBase"]
[SourceQuality "1"]
[TimeControl "5400+30"]

1. e4 {[%emt 0:00:05]} c5 {[%emt 0:00:05]} 2. Nf3 {[%emt 0:00:22]} Nc6 {[%emt 0:00:05]} 3. d4 {[%emt 0:00:21]} cxd4 {[%emt 0:00:07]} 4. Nxd4 {[%emt 0:00:09]} g6 {[%emt 0:00:08]} 5. c4 {[%emt 0:00:31]} Nf6 {[%emt 0:00:32]} 6. Nc3 {[%emt 0:00:41]} d6 {[%emt 0:00:16]} 7. Be2 {[%emt 0:00:20]} Nxd4 {[%emt 0:00:15]} 8. Qxd4 {[%emt 0:00:08]} Bg7 {[%emt 0:00:04]} 9. O-O {[%emt 0:00:23]} O-O {[%emt 0:00:25]} 10. Qd3 {[%emt 0:00:07]} a5 {[%emt 0:01:27]} 11. Be3 {[%emt 0:00:54]} a4 {[%emt 0:02:39]} 12. Bd4 {[%emt 0:04:19]} Qa5 {[%emt 0:02:26]} 13. f4 {[%emt 0:08:19]} Be6 {[%emt 0:21:39]} 14. f5 {[%emt 0:01:44]} Bd7 {[%emt 0:00:06]} 15. Kh1 {[%emt 0:33:47]} Bc6 {[%emt 0:01:30]} 16. Rf3 {[%emt 0:11:04]} Nd7 {[%emt 0:19:42]} 17. Bxg7 {[%emt 0:00:31]} Kxg7 {[%emt 0:00:02]} 18. Qd2 {[%emt 0:02:09]} Qe5 {[%emt 0:02:45]} 19. Raf1 {[%emt 0:02:00]} Kg8 {[%emt 0:03:45]} 20. Nd5 {[%emt 0:03:21]} Bxd5 {[%emt 0:02:11]} 21. exd5 {[%emt 0:00:10]} Qg7 {[%emt 0:05:51]} 22. h3 {[%emt 0:02:07]} Nc5 {[%emt 0:05:06]} 23. Re3 {[%emt 0:07:13]} Rae8 {[%emt 0:03:49]} 24. Bd1 {[%emt 0:01:22]} Qf6 {[%emt 0:09:18]} 25. Ref3 {[%emt 0:04:19]} Qe5 {[%emt 0:04:16]} 26. Kg1 {[%emt 0:03:05]} Ne4 {[%emt 0:00:58]} 27. Qe3 {[%emt 0:00:56]} Nc5 {[%emt 0:02:56]} 28. Qxe5 {[%emt 0:06:21]} dxe5 {[%emt 0:00:01]} 29. f6 {[%emt 0:01:34]} exf6 {[%emt 0:08:16]} 30. Rxf6 {[%emt 0:00:07]} Re7 {[%emt 0:00:39]} 31. b4 {[%emt 0:01:55]} Ne4 {[%emt 0:03:33]} 32. Rb6 {[%emt 0:00:46]} Nd2 {[%emt 0:00:26]} 33. d6 {[%emt 0:00:54]} Re6 {[%emt 0:00:41]} 34. c5 {[%emt 0:00:13]} Nxf1 {[%emt 0:00:44]} 35. Kxf1 {[%emt 0:00:04]} e4 {[%emt 0:00:32]} 36. Bxa4 {[%emt 0:01:38]} Rb8 {[%emt 0:00:38]} 37. Bb3 {[%emt 0:00:42]} Re5 {[%emt 0:00:26]} 38. c6 {[%emt 0:00:25]} e3 {[%emt 0:00:32]} 39. c7 {[%emt 0:01:25]} 1-0

[Event "SixDays Budapest IM-B January 2024"]
[Site "Budapest"]
[Date "2024.01.27"]
[Round "1.2"]
[White "Nemitz, Alfred"]
[Black "Varadi, Viktor"]
[Result "1/2-1/2"]
[ECO "D36"]
[WhiteElo "2223"]
[BlackElo "2368"]
[Annotator "RC"]
[PlyCount "120"]
[EventDate "2024.01.26"]
[EventType "tourn"]
[EventCountry "HUN"]
[SourceTitle "playchess.com"]
[Source "ChessBase"]
[SourceQuality "1"]
[TimeControl "5400+30"]

1. d4 {[%emt 0:00:02]} d5 {[%emt 0:00:07]} 2. c4 {[%emt 0:00:05]} e6 {[%emt 0:00:05]} 3. Nc3 {[%emt 0:00:14]} Nf6 {[%emt 0:00:10]} 4. cxd5 {[%emt 0:00:07]} exd5 {[%emt 0:00:07]} 5. Bg5 {[%emt 0:00:06]} c6 {[%emt 0:00:33]} 6. Qc2 {[%emt 0:00:09]} h6 {[%emt 0:09:23]} 7. Bh4 {[%emt 0:07:48]} Be7 {[%emt 0:06:36]} 8. e3 {[%emt 0:00:15]} O-O {[%emt 0:04:31]} 9. Bd3 {[%emt 0:00:49]} Nbd7 {[%emt 0:01:03]} 10. Nf3 {[%emt 0:00:24]} Re8 {[%emt 0:02:03]} 11. O-O {[%emt 0:05:14]} a5 {[%emt 0:08:10]} 12. h3 {[%emt 0:10:26]} Bd6 {[%emt 0:09:40]} 13. e4 {[%emt 0:05:39]} dxe4 {[%emt 0:00:05]} 14. Nxe4 {[%emt 0:00:13]} Be7 {[%emt 0:00:07]} 15. Rfe1 {[%emt 0:05:02]} Nxe4 {[%emt 0:01:14]} 16. Rxe4 {[%emt 0:04:24]} Bxh4 {[%emt 0:01:58]} 17. Rxe8+ {[%emt 0:07:40]} Qxe8 {[%emt 0:01:46]} 18. Nxh4 {[%emt 0:00:23]} Nf6 {[%emt 0:08:49]} 19. Bc4 {[%emt 0:03:16]} Qe4 {[%emt 0:04:01]} 20. Qxe4 {[%emt 0:03:29]} Nxe4 {[%emt 0:00:07]} 21. Ng6 {[%emt 0:10:45]} Nd6 {[%emt 0:06:30]} 22. Ne5 {[%emt 0:07:53]} Bf5 {[%emt 0:09:16]} 23. g4 {[%emt 0:00:57]} Nxc4 {[%emt 0:07:21]} 24. Nxc4 {[%emt 0:01:53]} Be6 {[%emt 0:00:18]} 25. b3 {[%emt 0:00:42]} Kf8 {[%emt 0:07:24]} 26. f3 {[%emt 0:06:00]} Ke7 {[%emt 0:00:52]} 27. Kf2 {[%emt 0:00:02]} b5 {[%emt 0:02:43]} 28. Ne5 {[%emt 0:04:38]} Kd6 {[%emt 0:00:06]} 29. Nd3 {[%emt 0:03:09]} a4 {[%emt 0:02:08]} 30. Rb1 {[%emt 0:01:20]} axb3 {[%emt 0:01:11]} 31. axb3 {[%emt 0:00:06]} Ra3 {[%emt 0:01:34]} 32. Nc5 {[%emt 0:01:01]} Ra2+ {[%emt 0:00:52]} 33. Ke3 {[%emt 0:00:32]} Bd5 {[%emt 0:01:19]} 34. Nd3 {[%emt 0:03:14]} g5 {[%emt 0:00:42]} 35. h4 {[%emt 0:04:54]} Ra3 {[%emt 0:01:34]} 36. hxg5 {[%emt 0:01:05]} hxg5 {[%emt 0:00:06]} 37. Nc5 {[%emt 0:00:13]} f6 {[%emt 0:00:43]} 38. Rb2 {[%emt 0:01:41]} Ra1 {[%emt 0:00:33]} 39. Kf2 {[%emt 0:02:07]} Rh1 {[%emt 0:00:35]} 40. Ke3 {[%emt 0:00:16]} Re1+ {[%emt 0:00:15]} 41. Kf2 {[%emt 0:00:33]} Rc1 {[%emt 0:00:24]} 42. Ne4+ {[%emt 0:01:22]} Bxe4 {[%emt 0:00:26]} 43. fxe4 {[%emt 0:00:01]} Rc3 {[%emt 0:00:08]} 44. Re2 {[%emt 0:00:56]} Rxb3 {[%emt 0:00:09]} 45. e5+ {[%emt 0:00:04]} Ke6 {[%emt 0:00:29]} 46. exf6+ {[%emt 0:00:13]} Kxf6 {[%emt 0:00:06]} 47. Rc2 {[%emt 0:00:03]} Ke6 {[%emt 0:01:46]} 48. Rxc6+ {[%emt 0:00:02]} Kd5 {[%emt 0:00:07]} 49. Rc5+ {[%emt 0:00:05]} Kxd4 {[%emt 0:00:06]} 50. Rxg5 {[%emt 0:00:04]} b4 {[%emt 0:00:33]} 51. Rb5 {[%emt 0:00:17]} Kc4 {[%emt 0:02:05]} 52. Rb8 {[%emt 0:00:03]} Rd3 {[%emt 0:00:15]} 53. Rc8+ {[%emt 0:03:04]} Kb3 {[%emt 0:01:30]} 54. g5 {[%emt 0:00:07]} Rd5 {[%emt 0:00:19]} 55. g6 {[%emt 0:00:05]} Rg5 {[%emt 0:00:04]} 56. Rc6 {[%emt 0:00:04]} Ka4 {[%emt 0:00:26]} 57. Kf3 {[%emt 0:02:22]} Kb5 {[%emt 0:00:08]} 58. Kf4 {[%emt 0:00:22]} Rg1 {[%emt 0:00:28]} 59. Re6 {[%emt 0:00:28]} b3 {[%emt 0:00:06]} 60. Re3 {[%emt 0:00:10]} Rxg6 1/2-1/2

[Event "SixDays Budapest IM-B January 2024"]
[Site "Budapest"]
[Date "2024.01.27"]
[Round "1.3"]
[White "Ihnat, Marek"]
[Black "Egresi, Mate"]
[Result "0-1"]
[ECO "B10"]
[WhiteElo "2111"]
[BlackElo "2389"]
[Annotator "RC"]
[PlyCount "84"]
[EventDate "2024.01.26"]
[EventType "tourn"]
[EventCountry "HUN"]
[SourceTitle "playchess.com"]
[Source "ChessBase"]
[SourceQuality "1"]
[TimeControl "5400+30"]

1. e4 {[%emt 0:00:03]} c6 {[%emt 0:00:06]} 2. Nf3 {[%emt 0:00:07]} d5 {[%emt 0:00:03]} 3. d3 {[%emt 0:00:08]} dxe4 {[%emt 0:00:07]} 4. dxe4 {[%emt 0:00:06]} Qxd1+ {[%emt 0:00:04]} 5. Kxd1 {[%emt 0:00:06]} Nf6 {[%emt 0:00:04]} 6. Nfd2 {[%emt 0:00:06]} g5 {[%emt 0:00:08]} 7. Nc3 {[%emt 0:00:22]} g4 {[%emt 0:00:07]} 8. a4 {[%emt 0:00:34]} Bh6 {[%emt 0:00:13]} 9. Bc4 {[%emt 0:10:42]} Nbd7 {[%emt 0:00:30]} 10. Nb3 {[%emt 0:04:05]} Bxc1 {[%emt 0:11:18]} 11. Rxc1 {[%emt 0:00:36]} Ne5 {[%emt 0:02:00]} 12. Bd3 {[%emt 0:00:59]} b6 {[%emt 0:38:16]} 13. Re1 {[%emt 0:13:11]} h5 {[%emt 0:18:26]} 14. Nd4 {[%emt 0:06:59]} Bd7 {[%emt 0:01:26]} 15. Ba6 {[%emt 0:05:22]} Kd8 {[%emt 0:05:51]} 16. Ke2 {[%emt 0:13:14]} Kc7 {[%emt 0:00:18]} 17. Kf1 {[%emt 0:00:43]} h4 {[%emt 0:00:46]} 18. f4 {[%emt 0:04:22]} gxf3 {[%emt 0:00:49]} 19. Nxf3 {[%emt 0:01:45]} Nfg4 {[%emt 0:04:38]} 20. Nxe5 {[%emt 0:04:17]} Nxe5 {[%emt 0:00:01]} 21. Be2 {[%emt 0:04:29]} a5 {[%emt 0:00:06]} 22. Nd1 {[%emt 0:04:16]} Rh6 {[%emt 0:04:27]} 23. Kg1 {[%emt 0:01:15]} Rf6 {[%emt 0:01:29]} 24. Rf1 {[%emt 0:00:38]} Rxf1+ {[%emt 0:00:06]} 25. Kxf1 {[%emt 0:00:09]} Be6 {[%emt 0:01:23]} 26. b3 {[%emt 0:01:54]} Rd8 {[%emt 0:00:40]} 27. Nf2 {[%emt 0:00:06]} Rd4 {[%emt 0:01:18]} 28. Rd1 {[%emt 0:00:47]} c5 {[%emt 0:00:40]} 29. Rxd4 {[%emt 0:00:45]} cxd4 {[%emt 0:01:03]} 30. Nd3 {[%emt 0:00:56]} Nxd3 {[%emt 0:03:12]} 31. Bxd3 {[%emt 0:00:06]} Kd6 {[%emt 0:00:06]} 32. Ke2 {[%emt 0:00:49]} Ke5 {[%emt 0:00:48]} 33. g3 {[%emt 0:06:28]} hxg3 {[%emt 0:01:10]} 34. hxg3 {[%emt 0:00:18]} Bc8 {[%emt 0:00:24]} 35. Kd2 {[%emt 0:13:07]} Bb7 {[%emt 0:00:08]} 36. c3 {[%emt 0:01:37]} Bxe4 {[%emt 0:01:03]} 37. Be2 {[%emt 0:00:43]} Bd5 {[%emt 0:01:12]} 38. b4 {[%emt 0:01:25]} dxc3+ {[%emt 0:01:52]} 39. Kxc3 {[%emt 0:00:08]} Ke4 {[%emt 0:00:13]} 40. bxa5 {[%emt 0:00:28]} bxa5 {[%emt 0:00:02]} 41. g4 {[%emt 0:02:14]} e5 {[%emt 0:00:22]} 42. Bd1 {[%emt 0:00:34]} Kf4 {[%emt 0:01:14]} 0-1

[Event "SixDays Budapest IM-B January 2024"]
[Site "Budapest"]
[Date "2024.01.27"]
[Round "1.4"]
[White "Nemeth, Zoltan"]
[Black "Srinath, Rao S.V."]
[Result "1/2-1/2"]
[ECO "E67"]
[WhiteElo "2194"]
[BlackElo "2260"]
[Annotator "RC"]
[PlyCount "77"]
[EventDate "2024.01.26"]
[EventType "tourn"]
[EventCountry "HUN"]
[SourceTitle "playchess.com"]
[Source "ChessBase"]
[SourceQuality "1"]
[TimeControl "5400+30"]

1. d4 {[%emt 0:00:03]} Nf6 {[%emt 0:01:17]} 2. c4 {[%emt 0:00:22]} g6 {[%emt 0:00:59]} 3. Nc3 {[%emt 0:00:05]} Bg7 {[%emt 0:00:04]} 4. g3 {[%emt 0:00:36]} O-O {[%emt 0:00:06]} 5. Bg2 {[%emt 0:00:03]} d6 {[%emt 0:00:08]} 6. Nf3 {[%emt 0:00:08]} Nbd7 {[%emt 0:00:04]} 7. O-O {[%emt 0:04:10]} e5 {[%emt 0:00:41]} 8. dxe5 {[%emt 0:16:38]} dxe5 {[%emt 0:01:48]} 9. Bg5 {[%emt 0:05:34]} c6 {[%emt 0:04:46]} 10. Qc1 {[%emt 0:03:22]} Re8 {[%emt 0:01:13]} 11. Rd1 {[%emt 0:00:31]} Qc7 {[%emt 0:01:06]} 12. h3 {[%emt 0:04:12]} a5 {[%emt 0:03:04]} 13. Nd2 {[%emt 0:00:29]} Nc5 {[%emt 0:04:26]} 14. Bxf6 {[%emt 0:00:19]} Bxf6 {[%emt 0:00:06]} 15. Nde4 {[%emt 0:00:08]} Nxe4 {[%emt 0:02:30]} 16. Nxe4 {[%emt 0:00:55]} Be7 {[%emt 0:04:05]} 17. c5 {[%emt 0:15:29]} Be6 {[%emt 0:06:48]} 18. Ng5 {[%emt 0:00:55]} Bd7 {[%emt 0:04:23]} 19. Qe3 {[%emt 0:01:44]} Rad8 {[%emt 0:04:33]} 20. Rd2 {[%emt 0:01:02]} Bc8 {[%emt 0:05:03]} 21. Rad1 {[%emt 0:00:05]} Rxd2 {[%emt 0:01:20]} 22. Rxd2 {[%emt 0:00:05]} Rd8 {[%emt 0:00:49]} 23. Ne4 {[%emt 0:14:43]} Be6 {[%emt 0:01:33]} 24. a3 a4 {[%emt 0:11:29]} 25. Qc3 {[%emt 0:10:32]} Rd5 {[%emt 0:05:36]} 26. Qb4 {[%emt 0:03:19]} f5 {[%emt 0:03:20]} 27. Rxd5 {[%emt 0:01:29]} cxd5 {[%emt 0:02:04]} 28. Nc3 {[%emt 0:00:34]} Bxc5 {[%emt 0:13:09]} 29. Nxd5 {[%emt 0:03:08]} Bxd5 {[%emt 0:00:33]} 30. Bxd5+ {[%emt 0:00:10]} Kg7 {[%emt 0:00:17]} 31. Qxa4 {[%emt 0:01:08]} Bxf2+ {[%emt 0:00:24]} 32. Kg2 {[%emt 0:01:38]} Bd4 {[%emt 0:08:51]} 33. Qa8 {[%emt 0:01:40]} e4 {[%emt 0:03:36]} 34. Qxb7 {[%emt 0:00:54]} Qxb7 {[%emt 0:00:15]} 35. Bxb7 {[%emt 0:00:06]} Bxb2 {[%emt 0:00:02]} 36. a4 {[%emt 0:02:55]} Bc3 {[%emt 0:00:05]} 37. g4 {[%emt 0:02:11]} Kf6 {[%emt 0:00:07]} 38. gxf5 {[%emt 0:00:52]} gxf5 {[%emt 0:00:35]} 39. Bc6 {[%emt 0:01:38]} 1/2-1/2

[Event "SixDays Budapest IM-B January 2024"]
[Site "Budapest"]
[Date "2024.01.27"]
[Round "1.5"]
[White "Kolimar, Kristof Pal"]
[Black "Semprun Martinez, Fernando"]
[Result "1-0"]
[ECO "D02"]
[WhiteElo "2304"]
[BlackElo "2071"]
[Annotator "RC"]
[PlyCount "91"]
[EventDate "2024.01.26"]
[EventType "tourn"]
[EventCountry "HUN"]
[SourceTitle "playchess.com"]
[Source "ChessBase"]
[SourceQuality "1"]
[TimeControl "5400+30"]

1. d4 {[%emt 0:00:04]} d5 {[%emt 0:00:01]} 2. Nf3 {[%emt 0:00:25]} Nf6 {[%emt 0:00:05]} 3. g3 {[%emt 0:00:48]} g6 {[%emt 0:00:03]} 4. c4 {[%emt 0:01:46]} c6 {[%emt 0:00:04]} 5. Qa4 {[%emt 0:00:37]} Nfd7 {[%emt 0:01:22]} 6. cxd5 {[%emt 0:00:22]} Nb6 {[%emt 0:00:12]} 7. Qd1 {[%emt 0:00:48]} cxd5 {[%emt 0:00:18]} 8. Bg2 {[%emt 0:01:17]} Bg7 {[%emt 0:00:17]} 9. Nc3 {[%emt 0:09:31]} Nc6 {[%emt 0:00:44]} 10. e3 {[%emt 0:03:30]} O-O {[%emt 0:02:16]} 11. O-O {[%emt 0:00:53]} Bf5 {[%emt 0:01:35]} 12. Nh4 {[%emt 0:02:53]} Be6 {[%emt 0:05:02]} 13. b3 {[%emt 0:01:13]} Rc8 {[%emt 0:00:50]} 14. Qd2 {[%emt 0:05:03]} Qd7 {[%emt 0:02:13]} 15. Ba3 {[%emt 0:08:11]} Bh3 {[%emt 0:03:14]} 16. Bc5 {[%emt 0:14:05]} Bxg2 {[%emt 0:02:44]} 17. Kxg2 {[%emt 0:00:31]} Na8 {[%emt 0:11:37]} 18. Rac1 {[%emt 0:07:25]} Nc7 {[%emt 0:08:17]} 19. Rfd1 {[%emt 0:04:08]} Rfd8 {[%emt 0:04:49]} 20. Nf3 {[%emt 0:03:13]} Ne6 {[%emt 0:08:37]} 21. Ba3 {[%emt 0:00:13]} Bf6 {[%emt 0:03:24]} 22. Qe2 {[%emt 0:04:36]} Ng5 {[%emt 0:03:41]} 23. Nxg5 {[%emt 0:05:07]} Bxg5 {[%emt 0:00:02]} 24. h4 {[%emt 0:00:42]} Bf6 {[%emt 0:00:19]} 25. h5 {[%emt 0:01:08]} g5 {[%emt 0:07:04]} 26. h6 {[%emt 0:04:56]} Qf5 {[%emt 0:02:52]} 27. g4 {[%emt 0:03:50]} Qg6 {[%emt 0:02:27]} 28. Qf3 {[%emt 0:01:36]} e6 {[%emt 0:06:24]} 29. Rh1 {[%emt 0:01:50]} Be7 {[%emt 0:01:17]} 30. Bb2 {[%emt 0:03:03]} Rf8 {[%emt 0:04:33]} 31. Ne2 {[%emt 0:04:37]} Nb4 {[%emt 0:06:12]} 32. Ba3 {[%emt 0:01:05]} a5 {[%emt 0:02:36]} 33. Ng3 {[%emt 0:01:29]} Rc2 {[%emt 0:04:53]} 34. Rxc2 {[%emt 0:01:48]} Qxc2 {[%emt 0:00:02]} 35. Rc1 {[%emt 0:00:19]} Qxa2 {[%emt 0:02:33]} 36. Bxb4 {[%emt 0:00:14]} axb4 {[%emt 0:00:15]} 37. Rc7 {[%emt 0:00:08]} Bd8 {[%emt 0:00:14]} 38. Rd7 {[%emt 0:00:09]} Qa5 {[%emt 0:02:53]} 39. Rxb7 {[%emt 0:02:16]} Qa6 {[%emt 0:01:18]} 40. Rd7 {[%emt 0:00:15]} Qb6 {[%emt 0:00:00]} 41. Nh5 f5 42. gxf5 {[%emt 0:02:46]} Rxf5 {[%emt 0:00:01]} 43. Qe2 {[%emt 0:00:31]} Bf6 {[%emt 0:01:20]} 44. Nxf6+ {[%emt 0:00:29]} Rxf6 {[%emt 0:00:00]} 45. Qc2 {[%emt 0:00:01]} Rf5 {[%emt 0:00:51]} 46. Qc8+ {[%emt 0:00:05]} 1-0

[Event "SixDays Budapest IM-B January 2024"]
[Site "Budapest"]
[Date "2024.01.28"]
[Round "2.1"]
[White "Sgircea, Silvia-Raluca"]
[Black "Semprun Martinez, Fernando"]
[Result "1-0"]
[ECO "A06"]
[WhiteElo "2242"]
[BlackElo "2071"]
[Annotator "RC"]
[PlyCount "51"]
[EventDate "2024.01.26"]
[EventType "tourn"]
[EventCountry "HUN"]
[SourceTitle "playchess.com"]
[Source "ChessBase"]
[SourceQuality "1"]
[TimeControl "5400+30"]

1. Nf3 {[%emt 0:00:08]} d5 {[%emt 0:00:01]} 2. e3 {[%emt 0:00:22]} Nf6 {[%emt 0:00:22]} 3. c4 {[%emt 0:00:05]} e6 {[%emt 0:02:36]} 4. Nc3 {[%emt 0:00:17]} Be7 {[%emt 0:01:52]} 5. b3 {[%emt 0:00:26]} O-O {[%emt 0:00:09]} 6. Bb2 {[%emt 0:00:05]} c5 {[%emt 0:00:40]} 7. cxd5 {[%emt 0:00:35]} Nxd5 {[%emt 0:00:47]} 8. a3 {[%emt 0:00:57]} Nc6 {[%emt 0:00:25]} 9. Qc2 {[%emt 0:00:07]} b6 {[%emt 0:01:44]} 10. h4 {[%emt 0:00:29]} Bb7 {[%emt 0:01:10]} 11. Ng5 {[%emt 0:00:41]} Bxg5 {[%emt 0:04:00]} 12. hxg5 {[%emt 0:00:03]} g6 {[%emt 0:00:06]} 13. Ne4 {[%emt 0:06:46]} f5 {[%emt 0:03:30]} 14. gxf6 {[%emt 0:01:51]} Nxf6 {[%emt 0:00:34]} 15. Nxf6+ {[%emt 0:12:16]} Rxf6 {[%emt 0:00:01]} 16. Bxf6 {[%emt 0:00:10]} Qxf6 {[%emt 0:00:02]} 17. Qc3 {[%emt 0:00:36]} e5 {[%emt 0:00:42]} 18. O-O-O {[%emt 0:02:13]} Qxf2 {[%emt 0:00:43]} 19. Bc4+ {[%emt 0:00:21]} Kh8 {[%emt 0:00:41]} 20. Rhf1 {[%emt 0:18:44]} Qxg2 {[%emt 0:05:03]} 21. Rf7 {[%emt 0:01:03]} Nd4 {[%emt 0:00:02]} 22. exd4 {[%emt 0:00:48]} exd4 {[%emt 0:00:01]} 23. Qd3 {[%emt 0:01:23]} Be4 {[%emt 0:07:51]} 24. Qf1 {[%emt 0:00:08]} Qxf1 {[%emt 0:00:01]} 25. Rdxf1 {[%emt 0:00:08]} Bf5 {[%emt 0:00:05]} 26. Re1 {[%emt 0:00:30]} 1-0

[Event "SixDays Budapest IM-B January 2024"]
[Site "Budapest"]
[Date "2024.01.28"]
[Round "2.2"]
[White "Srinath, Rao S.V."]
[Black "Kolimar, Kristof Pal"]
[Result "1-0"]
[ECO "B22"]
[WhiteElo "2260"]
[BlackElo "2304"]
[Annotator "RC"]
[PlyCount "119"]
[EventDate "2024.01.26"]
[EventType "tourn"]
[EventCountry "HUN"]
[SourceTitle "playchess.com"]
[Source "ChessBase"]
[SourceQuality "1"]
[TimeControl "5400+30"]

1. e4 {[%emt 0:00:03]} c5 {[%emt 0:00:04]} 2. c3 {[%emt 0:00:04]} Nf6 {[%emt 0:00:05]} 3. e5 {[%emt 0:00:09]} Nd5 {[%emt 0:00:04]} 4. d4 {[%emt 0:00:04]} cxd4 {[%emt 0:00:05]} 5. Nf3 {[%emt 0:00:26]} e6 {[%emt 0:00:04]} 6. cxd4 {[%emt 0:01:47]} d6 {[%emt 0:00:13]} 7. a3 {[%emt 0:00:05]} Bd7 {[%emt 0:00:58]} 8. Bd3 {[%emt 0:01:42]} Bc6 {[%emt 0:00:08]} 9. O-O {[%emt 0:00:07]} Nd7 {[%emt 0:00:06]} 10. b4 {[%emt 0:00:30]} a6 {[%emt 0:00:05]} 11. Re1 {[%emt 0:00:48]} Be7 {[%emt 0:09:54]} 12. Qe2 {[%emt 0:04:19]} dxe5 {[%emt 0:05:38]} 13. dxe5 {[%emt 0:01:13]} O-O {[%emt 0:04:17]} 14. h4 {[%emt 0:00:06]} Bb5 {[%emt 0:04:33]} 15. Bxb5 {[%emt 0:04:25]} axb5 {[%emt 0:00:31]} 16. Bb2 {[%emt 0:00:06]} Bxh4 {[%emt 0:19:18]} 17. Qxb5 {[%emt 0:00:59]} N7b6 {[%emt 0:00:15]} 18. Nbd2 {[%emt 0:09:35]} Be7 {[%emt 0:04:19]} 19. Bd4 {[%emt 0:06:24]} Qd7 {[%emt 0:05:37]} 20. Qd3 {[%emt 0:01:05]} Rfc8 {[%emt 0:04:56]} 21. Ne4 {[%emt 0:01:11]} h6 {[%emt 0:03:42]} 22. g3 {[%emt 0:08:54]} Nc4 {[%emt 0:09:43]} 23. Bc5 {[%emt 0:04:31]} Nb2 {[%emt 0:06:38]} 24. Qd2 {[%emt 0:09:46]} Na4 {[%emt 0:02:16]} 25. Be3 {[%emt 0:02:08]} Ndb6 {[%emt 0:03:55]} 26. Bxh6 {[%emt 0:01:56]} Qxd2 {[%emt 0:00:02]} 27. Bxd2 {[%emt 0:00:07]} Nc4 {[%emt 0:00:54]} 28. Bg5 {[%emt 0:02:59]} Bxg5 {[%emt 0:01:09]} 29. Nfxg5 {[%emt 0:00:03]} Nxe5 {[%emt 0:09:30]} 30. Nd6 {[%emt 0:00:07]} Rd8 {[%emt 0:00:39]} 31. Nxb7 {[%emt 0:00:35]} Rd5 {[%emt 0:00:05]} 32. Red1 {[%emt 0:05:47]} Nd3 {[%emt 0:01:45]} 33. Ne4 {[%emt 0:00:45]} Nab2 {[%emt 0:01:51]} 34. Rdb1 {[%emt 0:02:47]} Nc4 {[%emt 0:02:45]} 35. Rb3 {[%emt 0:02:18]} Rb8 {[%emt 0:00:28]} 36. Nec5 {[%emt 0:00:05]} Nxc5 {[%emt 0:00:42]} 37. bxc5 {[%emt 0:00:05]} Rd7 {[%emt 0:00:28]} 38. Rb4 {[%emt 0:04:01]} Ne5 {[%emt 0:00:37]} 39. Nd6 {[%emt 0:01:09]} Ra8 {[%emt 0:00:19]} 40. Rb5 {[%emt 0:08:25]} Rc7 {[%emt 0:00:57]} 41. a4 {[%emt 0:01:41]} Nd3 {[%emt 0:00:17]} 42. Nb7 {[%emt 0:00:48]} Ra7 {[%emt 0:00:47]} 43. Ra3 {[%emt 0:04:58]} Nc1 {[%emt 0:00:28]} 44. Nd6 {[%emt 0:00:34]} Ne2+ {[%emt 0:00:08]} 45. Kf1 {[%emt 0:02:05]} Nd4 {[%emt 0:00:01]} 46. Rb8+ {[%emt 0:00:55]} Kh7 {[%emt 0:00:01]} 47. Nb5 {[%emt 0:00:42]} Nxb5 {[%emt 0:00:02]} 48. Rxb5 {[%emt 0:00:05]} Rc6 {[%emt 0:01:22]} 49. a5 {[%emt 0:00:04]} Kg6 {[%emt 0:00:18]} 50. Ke2 {[%emt 0:00:04]} Kf5 {[%emt 0:00:16]} 51. Kd3 {[%emt 0:00:06]} e5 {[%emt 0:00:50]} 52. Kc4 {[%emt 0:00:04]} Rc8 {[%emt 0:00:43]} 53. a6 {[%emt 0:00:36]} Rcc7 {[%emt 0:00:23]} 54. Rb6 {[%emt 0:00:32]} e4 {[%emt 0:00:10]} 55. Kb5 {[%emt 0:00:09]} Re7 {[%emt 0:00:31]} 56. Rb8 {[%emt 0:00:28]} Ke6 {[%emt 0:01:21]} 57. Kb6 {[%emt 0:00:19]} Kd5 {[%emt 0:00:08]} 58. c6 {[%emt 0:01:18]} Rac7 {[%emt 0:00:13]} 59. Ra5+ {[%emt 0:00:09]} Kd6 {[%emt 0:00:25]} 60. Rd8+ {[%emt 0:00:05]} 1-0

[Event "SixDays Budapest IM-B January 2024"]
[Site "Budapest"]
[Date "2024.01.28"]
[Round "2.3"]
[White "Egresi, Mate"]
[Black "Nemeth, Zoltan"]
[Result "1/2-1/2"]
[ECO "C42"]
[WhiteElo "2389"]
[BlackElo "2194"]
[Annotator "TA"]
[PlyCount "69"]
[EventDate "2024.01.26"]
[EventType "tourn"]
[EventCountry "HUN"]
[SourceTitle "playchess.com"]
[Source "ChessBase"]
[SourceQuality "1"]
[TimeControl "5400+30"]

{[%evp 24,69,25,25,25,18,29,9,17,0,12,8,36,23,38,0,0,0,0,0,0,-15,0,-1,0,0,0,0,0,0,0,-17,0,0,5,0,9,7,8,8,9,5,5,0,0,-90,-92,-92]} 1. e4 {[%emt 0:08:38]} e5 {[%emt 0:00:59]} 2. Nf3 {[%emt 0:00:05]} Nf6 {[%emt 0:00:18]} 3. Nxe5 {[%emt 0:00:05]} d6 {[%emt 0:00:04]} 4. Nf3 {[%emt 0:00:05]} Nxe4 {[%emt 0:00:07]} 5. d4 {[%emt 0:00:05]} d5 {[%emt 0:00:04]} 6. Bd3 {[%emt 0:00:04]} Nc6 {[%emt 0:04:41]} 7. O-O {[%emt 0:00:38]} Bg4 {[%emt 0:00:22]} 8. c4 {[%emt 0:01:43]} Be7 {[%emt 0:07:02]} 9. cxd5 {[%emt 0:03:01]} Qxd5 {[%emt 0:00:18]} 10. Nc3 {[%emt 0:00:07]} Nxc3 {[%emt 0:01:02]} 11. bxc3 {[%emt 0:00:01]} Bxf3 {[%emt 0:01:27]} 12. Qxf3 {[%emt 0:00:49]} Qxf3 {[%emt 0:00:09]} 13. gxf3 {[%emt 0:00:05]} O-O {[%emt 0:03:44]} 14. Rb1 {[%emt 0:08:39][%cal Ba1b1,Bb1b5,Bb5e5][%mdl 32]} Na5 {[%emt 0:02:36]} 15. Rb5 {[%emt 0:00:21] Black is weak on the light squares} b6 {[%emt 0:00:16] The position is equal.} 16. Re5 {[%emt 0:04:37]} Bd6 {[%emt 0:00:45]} 17. Re4 {[%emt 0:00:42]} f5 {[%emt 0:06:48]} 18. Re2 {[%emt 0:23:52]} g6 {[%emt 0:00:20]} 19. Bd2 {[%emt 0:01:24]} (19. Bg5 {with more complications.} Kf7 20. Rfe1 Rae8 21. Re3) 19... Rfe8 {[%emt 0:02:10]} 20. Rxe8+ {[%emt 0:03:30]} Rxe8 {[%emt 0:00:06]} 21. Rb1 {[%emt 0:01:47]} Kf7 {[%emt 0:08:10]} 22. Kf1 {[%emt 0:02:32]} Rd8 {[%emt 0:06:31]} 23. h3 {[%emt 0:01:24]} c5 {[%emt 0:02:23][%cal Od6e5]} 24. Bb5 {[%emt 0:03:25]} Be7 {[%emt 0:00:51]} 25. Be3 {[%emt 0:03:22]} cxd4 {[%emt 0:02:19]} 26. cxd4 {[%emt 0:01:20]} g5 {[%emt 0:06:07]} 27. Rd1 {[%emt 0:16:27]} Rd5 {[%emt 0:02:02]} 28. a4 {[%emt 0:00:23]} Bf6 {[%emt 0:08:35]} 29. Rc1 {[%emt 0:01:17]} Bd8 {[%emt 0:06:38]} 30. Rc8 {[%emt 0:03:42]} f4 {[%emt 0:02:35]} 31. Bd2 {[%emt 0:00:25] [#] Bxa5 would now be deadly.} Rxd4 {[%emt 0:03:53]} 32. Bc3 {[%emt 0:00:06]} Rd1+ {[%emt 0:05:54]} 33. Ke2 {[%emt 0:00:43]} Rc1 {[%emt 0:02:45] ...Bf6 is the strong threat.} 34. Bd7 {[%emt 0:03:05] [#]} (34. Kd2 $11 {remains equal.} Nb3+ 35. Kd3 (35. Ke2 Nd4+ 36. Kd2 Nb3+ 37. Kd3 Ke7 $11)) 34... Bf6 $1 $17 {[%emt 0:01:44]} 35. Bxa5 {[%emt 0:03:38] Weighted Error Value: White=0.13 (very precise) /Black=0.04 (flawless) .  Mistake:       	White=1     	---        Inaccurate:     	White=1     	Black=1      OK:         	White=9     	Black=9      Strong:       	---       	Black=1} 1/2-1/2